bitfinex/quotes_SOLUSD_20240620
["timestamp","ask_amount","ask_price","bid_price","bid_amount"]
[1718843131481,6.0402,135.42,135.35,20.51]
[1718843135063,6.0402,135.42,135.35,20.0]
[1718843137069,6.0402,135.42,135.36,0.17]
[1718843137571,16.5611,135.44,135.37,21.97]
[1718843137974,16.5611,135.44,135.38,20.0]
[1718843138283,6.0202,135.45,135.38,20.0]
[1718843141667,6.0202,135.45,135.39,0.17]
[1718843141992,15.7656,135.47,135.39,0.68]
[1718843142767,15.7656,135.47,135.38,20.0]
[1718843142986,15.7656,135.47,135.39,0.17]
[1718843143167,15.7656,135.47,135.38,20.0]
[1718843143569,0.51,135.46,135.38,20.0]
[1718843143983,0.51,135.46,135.37,38.1613]
[1718843144285,0.17,135.46,135.34,21.97]
[1718843144474,20.34,135.46,135.35,20.0]
[1718843144679,0.34,135.46,135.37,21.97]
[1718843144876,15.7656,135.47,135.37,21.97]
[1718843145080,15.7656,135.47,135.38,20.0]
[1718843145480,15.7656,135.47,135.39,0.17]
[1718843145682,15.7656,135.47,135.39,0.34]
[1718843147272,15.7656,135.47,135.38,20.0]
[1718843147592,15.7656,135.47,135.39,0.17]
[1718843147772,15.7656,135.47,135.38,20.0]
[1718843148794,7.8925,135.46,135.33,21.9901]
[1718843148975,0.51,135.46,135.35,21.97]
[1718843149184,0.34,135.45,135.35,21.97]
[1718843149504,0.34,135.44,135.35,21.97]
[1718843149975,6.585,135.43,135.35,21.97]
[1718843160629,15.8093,135.42,135.32,21.97]
[1718843162001,15.8093,135.42,135.33,0.17]
[1718843164210,6.4381,135.4,135.32,21.97]
[1718843164408,6.4381,135.4,135.3,21.97]
[1718843165490,0.34,135.39,135.3,21.97]
[1718843167484,7.7261,135.39,135.3,21.97]
[1718843167690,15.782,135.38,135.3,0.17]
[1718843167911,15.782,135.38,135.3,0.34]
[1718843168695,15.782,135.38,135.29,21.97]
[1718843170892,6.037,135.37,135.26,21.97]
[1718843171125,6.037,135.37,135.27,20.0]
[1718843171918,6.037,135.37,135.3,0.17]
[1718843172122,6.037,135.37,135.3,0.68]
[1718843172927,15.782,135.38,135.32,21.97]
[1718843173086,6.3496,135.4,135.33,0.68]
[1718843173292,6.3496,135.4,135.35,21.97]
[1718843174521,6.3496,135.4,135.36,0.17]
[1718843174719,16.6516,135.42,135.36,0.68]
[1718843175800,16.6516,135.42,135.34,0.17]
[1718843176102,16.6516,135.42,135.35,21.97]
[1718843176701,6.611,135.41,135.32,20.0]
[1718843176892,15.5804,135.39,135.25,29.28400499]
[1718843177221,0.34,135.4,135.25,29.28400499]
[1718843177222,15.5804,135.37,135.28,21.97]
[1718843177706,0.17,135.36,135.28,21.97]
[1718843178091,6.5138,135.34,135.22,1.27336756]
[1718843178290,16.3803,135.33,135.25,21.97]
[1718843178895,0.34,135.32,135.22,6.5138]
[1718843179212,0.17,135.31,135.23,44.08182727]
[1718843179393,16.5503,135.33,135.24,2.11167111]
[1718843179598,0.68,135.32,135.23,41.97]
[1718843179914,16.3803,135.33,135.23,41.97]
[1718843180417,16.3803,135.33,135.24,0.34]
[1718843181193,0.17,135.32,135.23,41.97]
[1718843181397,0.17,135.32,135.23,21.97]
[1718843181601,16.3803,135.33,135.23,21.97]
[1718843182190,0.17,135.32,135.23,21.97]
[1718843182394,16.3803,135.33,135.23,21.97]
[1718843182619,0.68,135.32,135.23,21.97]
[1718843182824,0.34,135.32,135.24,1.47707739]
[1718843182993,0.17,135.32,135.23,21.97]
[1718843183193,0.17,135.32,135.24,0.17]
[1718843183420,16.3803,135.33,135.24,0.34]
[1718843186394,16.3803,135.33,135.26,21.97]
[1718843186596,16.3803,135.33,135.27,0.17]
[1718843186794,16.3803,135.33,135.26,21.97]
[1718843192836,16.3803,135.33,135.27,0.17]
[1718843193044,16.3803,135.33,135.27,0.51]
[1718843193340,16.3803,135.33,135.26,21.97]
[1718843193517,16.3803,135.33,135.26,0.17]
[1718843193714,16.3803,135.33,135.27,1.47541918]
[1718843194322,16.3803,135.33,135.28,22.48]
[1718843194535,16.3803,135.33,135.29,0.34]
[1718843194744,6.5138,135.34,135.29,0.34]
[1718843195227,6.5138,135.34,135.28,22.14]
[1718843195746,6.5138,135.34,135.28,21.97]
[1718843197351,6.5138,135.34,135.29,0.51]
[1718843197834,6.5138,135.34,135.28,21.97]
[1718843198444,6.5138,135.34,135.25,20.0]
[1718843198629,16.6084,135.33,135.25,20.0]
[1718843199136,16.6084,135.33,135.25,21.97]
[1718843199730,16.6084,135.33,135.26,0.17]
[1718843201647,16.6084,135.33,135.25,21.97]
[1718843201962,16.6084,135.33,135.24,42.31]
[1718843202161,16.6084,135.33,135.24,41.97]
[1718843203937,0.17,135.32,135.24,21.97]
[1718843204141,0.34,135.32,135.24,21.97]
[1718843206464,15.0126,135.3,135.21,21.97]
[1718843206648,15.0126,135.3,135.22,0.34]
[1718843209849,15.0126,135.3,135.24,21.97]
[1718843210045,15.0126,135.3,135.25,0.17]
[1718843210366,16.1554,135.34,135.28,0.17]
[1718843210542,16.1554,135.34,135.3,21.97]
[1718843211164,16.1554,135.34,135.31,0.17]
[1718843211374,6.3768,135.35,135.31,20.51]
[1718843211665,6.3768,135.35,135.31,0.51]
[1718843211860,6.3768,135.35,135.3,21.97]
[1718843214069,6.3768,135.35,135.31,0.17]
[1718843214271,6.3768,135.35,135.31,0.34]
[1718843214453,15.6219,135.37,135.31,0.34]
[1718843215067,15.6219,135.37,135.3,21.97]
[1718843217773,15.6219,135.37,135.31,0.17]
[1718843217974,15.6219,135.37,135.31,0.34]
[1718843219573,15.6219,135.37,135.3,21.97]
[1718843220069,15.6219,135.37,135.31,0.34]
[1718843220465,15.6219,135.37,135.33,21.97]
[1718843220970,15.6219,135.37,135.31,0.17]
[1718843221156,15.6219,135.37,135.31,20.51]
[1718843221561,15.6219,135.37,135.31,20.0]
[1718843221753,15.6219,135.37,135.3,21.97]
[1718843222380,15.6219,135.37,135.26,7.15061986]
[1718843222674,15.8201,135.35,135.26,21.97]
[1718843223364,6.2085,135.34,135.26,21.97]
[1718843224267,15.5535,135.33,135.23,21.97]
[1718843224471,6.2184,135.31,135.23,21.97]
[1718843226876,15.3319,135.3,135.23,21.97]
[1718843231181,15.3319,135.3,135.24,0.34]
[1718843231559,15.3319,135.3,135.26,21.97]
[1718843232077,16.0726,135.33,135.27,0.34]
[1718843232288,16.0726,135.33,135.27,20.34]
[1718843233979,16.0726,135.33,135.27,20.0]
[1718843234479,16.0726,135.33,135.25,20.0]
[1718843235384,6.4611,135.32,135.24,21.97]
[1718843235563,16.6034,135.31,135.24,21.97]
[1718843237870,16.6034,135.31,135.21,21.97]
[1718843238183,16.6034,135.31,135.22,0.51]
[1718843241067,16.6034,135.31,135.23,0.17]
[1718843241267,16.6034,135.31,135.24,21.97]
[1718843246569,0.17,135.3,135.24,21.97]
[1718843246769,0.17,135.3,135.21,21.97]
[1718843246971,0.17,135.3,135.22,20.0]
[1718843247782,16.6034,135.31,135.23,0.17]
[1718843247988,16.6034,135.31,135.23,0.34]
[1718843248188,16.6034,135.31,135.23,0.51]
[1718843250682,16.6034,135.31,135.24,22.14]
[1718843250879,16.6034,135.31,135.25,0.17]
[1718843256892,22.6623,135.35,135.28,0.17]
[1718843257080,22.6623,135.35,135.28,0.34]
[1718843257282,22.6623,135.35,135.3,21.97]
[1718843259373,22.6623,135.35,135.31,20.34]
[1718843262084,22.6623,135.35,135.3,21.97]
[1718843262801,22.6623,135.35,135.26,5.78258194]
[1718843262984,22.6623,135.35,135.27,41.97]
[1718843263185,22.6623,135.35,135.27,21.97]
[1718843264591,22.6623,135.35,135.24,21.97]
[1718843264793,22.6623,135.35,135.25,20.0]
[1718843266100,22.6623,135.35,135.26,0.34]
[1718843269188,22.6623,135.35,135.28,0.17]
[1718843269515,22.6623,135.35,135.28,0.34]
[1718843269691,22.6623,135.35,135.28,0.17]
[1718843269893,22.6623,135.35,135.27,21.97]
[1718843271205,0.17,135.34,135.27,21.97]
[1718843271397,0.17,135.32,135.24,21.97]
[1718843271606,0.51,135.32,135.24,21.97]
[1718843271793,22.9968,135.31,135.24,21.97]
[1718843273008,22.9968,135.31,135.25,0.17]
[1718843273237,22.9968,135.31,135.25,0.34]
[1718843273408,22.9968,135.31,135.25,0.30372172]
[1718843275920,22.9968,135.31,135.24,21.97]
[1718843276118,22.9968,135.31,135.23,0.17]
[1718843276319,22.9968,135.31,135.23,22.31]
[1718843276523,22.9968,135.31,135.24,20.0]
[1718843279132,22.9968,135.31,135.23,21.97]
[1718843279306,22.9968,135.31,135.21,21.97]
[1718843280426,0.17,135.3,135.21,21.97]
[1718843280605,15.4962,135.29,135.21,21.97]
[1718843281107,15.4962,135.29,135.17,31.0739]
[1718843281414,6.6508,135.26,135.17,21.97]
[1718843286430,15.6801,135.25,135.17,21.97]
[1718843288831,15.1701,135.25,135.17,21.97]
[1718843289339,0.17,135.24,135.17,21.97]
[1718843289527,0.17,135.24,135.16,21.97]
[1718843290224,0.17,135.24,135.15,0.17]
[1718843290421,0.17,135.24,135.16,21.97]
[1718843291937,21.6961,135.23,135.14,20.34]
[1718843292121,21.6961,135.23,135.14,22.31]
[1718843292822,21.6961,135.23,135.17,21.97]
[1718843293215,21.6961,135.23,135.18,0.51]
[1718843293419,16.6447,135.31,135.2,21.97]
[1718843293623,6.0429,135.29,135.2,21.97]
[1718843293834,36.6447,135.28,135.2,21.97]
[1718843294037,6.0429,135.27,135.2,21.97]
[1718843295451,6.0429,135.27,135.22,0.17]
[1718843295624,6.0429,135.27,135.23,21.97]
[1718843296016,16.6447,135.28,135.23,21.97]
[1718843296831,16.6447,135.28,135.21,20.0]
[1718843297336,16.6447,135.28,135.2,22.14]
[1718843297641,16.6447,135.28,135.21,0.51]
[1718843297847,16.6447,135.28,135.21,20.51]
[1718843300124,16.6447,135.28,135.21,20.0]
[1718843300527,16.6447,135.28,135.22,0.17]
[1718843300836,16.6447,135.28,135.22,0.51]
[1718843301137,16.6447,135.28,135.21,20.0]
[1718843301844,6.5787,135.27,135.18,20.0]
[1718843302148,6.5787,135.27,135.18,20.17]
[1718843302642,6.5787,135.27,135.18,20.0]
[1718843303737,15.3396,135.26,135.17,22.14]
[1718843303944,15.3396,135.23,135.1,21.60993502]
[1718843304242,0.17,135.22,135.13,21.97]
[1718843307643,0.34,135.22,135.13,21.97]
[1718843308146,6.4854,135.21,135.13,21.97]
[1718843310143,6.4854,135.21,135.12,0.68]
[1718843310346,6.4854,135.21,135.12,0.17]
[1718843310549,6.4854,135.21,135.12,20.17]
[1718843313331,6.4854,135.21,135.12,20.0]
[1718843313539,6.4854,135.21,135.13,0.34]
[1718843313735,6.4854,135.21,135.14,21.97]
[1718843316157,6.4854,135.21,135.13,0.34]
[1718843318653,16.3646,135.2,135.12,20.0]
[1718843318852,16.3646,135.2,135.14,21.97]
[1718843319158,16.3646,135.2,135.15,20.34]
[1718843319331,16.3646,135.2,135.19,7.36]
[1718843319947,6.4854,135.21,135.19,7.36]
[1718843320166,16.3646,135.23,135.2,7.36]
[1718843320462,16.3646,135.23,135.22,7.36]
[1718843320867,16.3646,135.23,135.15,20.34]
[1718843321164,16.3646,135.23,135.22,7.36]
[1718843321345,16.3646,135.23,135.17,22.08]
[1718843321665,16.3646,135.23,135.18,20.17]
[1718843321854,16.3646,135.23,135.18,20.0]
[1718843323162,16.3646,135.23,135.17,22.08]
[1718843326051,16.3646,135.23,135.18,0.51]
[1718843326654,16.3646,135.23,135.17,22.25]
[1718843326956,16.3646,135.23,135.17,22.08]
[1718843329259,16.3646,135.23,135.15,22.08]
[1718843331177,16.3646,135.23,135.16,0.68]
[1718843332073,16.3646,135.23,135.18,22.08]
[1718843332465,15.5424,135.25,135.19,0.34]
[1718843332665,15.5424,135.25,135.21,22.08]
[1718843334655,15.5424,135.25,135.19,0.34]
[1718843334853,15.5424,135.25,135.18,20.68]
[1718843338486,15.5424,135.25,135.18,20.51]
[1718843338794,15.5424,135.25,135.18,20.17]
[1718843339089,15.5424,135.25,135.18,20.0]
[1718843339880,15.5424,135.25,135.17,22.59]
[1718843340360,15.5424,135.25,135.17,0.51]
[1718843340560,15.5424,135.25,135.17,22.59]
[1718843340760,15.5424,135.25,135.17,22.42]
[1718843342863,15.5424,135.25,135.17,22.25]
[1718843343067,15.5424,135.25,135.17,22.08]
[1718843344486,6.0303,135.24,135.17,22.08]
[1718843344687,6.0303,135.24,135.18,0.17]
[1718843344878,6.0303,135.24,135.18,20.51]
[1718843345074,6.0303,135.24,135.18,20.68]
[1718843349291,15.5424,135.25,135.21,0.17]
[1718843349588,6.2006,135.27,135.21,20.0]
[1718843349797,6.2006,135.27,135.25,7.36]
[1718843350271,6.2006,135.27,135.26,7.36]
[1718843350669,6.2006,135.27,135.25,7.36]
[1718843350884,6.2006,135.27,135.24,7.36]
[1718843351594,6.2006,135.27,135.2,22.07]
[1718843353372,15.9995,135.26,135.18,20.0]
[1718843353674,16.1695,135.26,135.18,20.0]
[1718843355200,15.9995,135.26,135.18,20.0]
[1718843355368,15.9995,135.26,135.19,0.17]
[1718843355569,15.9995,135.26,135.18,20.0]
[1718843357074,15.9995,135.26,135.19,0.17]
[1718843357271,15.9995,135.26,135.2,22.07]
[1718843361790,15.9995,135.26,135.18,20.0]
[1718843361987,15.9995,135.26,135.19,0.68]
[1718843363499,15.9995,135.26,135.18,20.0]
[1718843365189,15.9995,135.26,135.19,0.17]
[1718843365577,15.9995,135.26,135.19,0.51]
[1718843365903,15.9995,135.26,135.2,22.07]
[1718843368699,15.9995,135.26,135.21,0.17]
[1718843372309,15.9995,135.26,135.2,22.07]
[1718843372602,15.9995,135.26,135.18,20.0]
[1718843373382,15.9995,135.26,135.21,7.36]
[1718843374911,15.8296,135.24,135.14,1.27026615]
[1718843375127,15.8296,135.24,135.19,7.36]
[1718843378503,15.8296,135.24,135.13,0.17]
[1718843378706,14.1206,135.25,135.13,20.0]
[1718843378707,15.3029,135.21,135.13,20.0]
[1718843378909,15.3029,135.21,135.17,7.36]
[1718843383817,15.3029,135.21,135.1,35.27778111]
[1718843383996,15.3029,135.21,135.17,7.36]
[1718843384195,15.3029,135.21,135.11,0.68]
[1718843384397,15.3029,135.21,135.17,7.36]
[1718843386397,15.3029,135.21,135.11,20.68]
[1718843386599,15.3029,135.21,135.17,7.36]
[1718843388020,15.3029,135.21,135.18,7.36]
[1718843389691,15.3029,135.21,135.11,20.68]
[1718843389896,15.3029,135.21,135.18,7.36]
[1718843393103,23.146,135.2,135.11,20.0]
[1718843393420,23.146,135.2,135.1,49.44]
[1718843393421,7.53,135.19,135.1,49.44]
[1718843393720,7.36,135.19,135.14,7.36]
[1718843394017,22.976,135.2,135.15,7.36]
[1718843394198,22.636,135.2,135.15,7.36]
[1718843394523,22.636,135.2,135.16,7.36]
[1718843400230,22.636,135.2,135.11,0.34]
[1718843400403,6.624,135.23,135.19,7.36]
[1718843400600,6.624,135.23,135.22,7.36]
[1718843401320,6.624,135.23,135.19,7.36]
[1718843401524,14.0188,135.23,135.19,7.36]
[1718843401728,14.0188,135.23,135.18,7.36]
[1718843402109,21.3788,135.23,135.18,7.36]
[1718843402306,13.984,135.23,135.18,7.36]
[1718843402611,6.624,135.23,135.2,7.36]
[1718843402814,6.624,135.23,135.17,7.36]
[1718843403007,6.624,135.23,135.22,7.36]
[1718843404225,6.624,135.23,135.21,7.36]
[1718843404726,15.3506,135.27,135.22,7.36]
[1718843404934,15.3506,135.27,135.25,7.36]
[1718843405316,15.3506,135.27,135.24,7.36]
[1718843405509,15.3506,135.27,135.18,0.17]
[1718843405840,15.3506,135.27,135.25,7.36]
[1718843406812,15.3506,135.27,135.18,20.68]
[1718843407030,15.3506,135.27,135.24,7.36]
[1718843407536,15.3506,135.27,135.18,20.68]
[1718843407719,15.3506,135.27,135.24,7.36]
[1718843407916,7.3937,135.25,135.15,16.4227]
[1718843408103,15.3506,135.27,135.21,7.36]
[1718843408307,15.3506,135.27,135.22,7.36]
[1718843408519,15.3506,135.27,135.23,7.36]
[1718843408726,15.3506,135.27,135.24,7.36]
[1718843408918,15.8436,135.31,135.2,16.3513]
[1718843409119,6.1247,135.32,135.3,7.36]
[1718843409328,15.8436,135.35,135.31,7.36]
[1718843409508,44.72108196,135.4,135.26,0.17]
[1718843409509,16.6467,135.39,135.34,7.36]
[1718843409712,16.6467,135.39,135.26,0.17]
[1718843409713,16.6467,135.39,135.38,7.36]
[1718843410223,16.6467,135.39,135.32,0.34]
[1718843410224,16.6467,135.39,135.36,7.36]
[1718843410432,16.6467,135.39,135.38,7.36]
[1718843410732,29.620712,135.4,135.38,7.36]
[1718843410910,29.620712,135.4,135.32,0.17]
[1718843411238,29.620712,135.4,135.33,0.17]
[1718843411538,29.620712,135.4,135.33,0.51]
[1718843411725,29.620712,135.4,135.34,0.17]
[1718843412029,6.4782,135.42,135.34,0.17]
[1718843412234,6.4782,135.42,135.33,0.51]
[1718843412613,6.4782,135.42,135.34,0.17]
[1718843412927,6.4782,135.42,135.35,0.17]
[1718843413230,6.4782,135.42,135.35,0.51]
[1718843414618,6.1086,135.46,135.36,0.17]
[1718843414924,6.1086,135.46,135.38,22.03]
[1718843418812,6.1086,135.46,135.31,21.9794]
[1718843418813,0.68,135.45,135.31,21.9794]
[1718843419023,0.68,135.45,135.35,0.17]
[1718843419333,0.68,135.45,135.35,20.17]
[1718843419513,7.385,135.41,135.31,21.9794]
[1718843419717,0.17,135.41,135.31,21.9794]
[1718843420019,0.34,135.41,135.31,21.9794]
[1718843420223,6.4512,135.4,135.31,21.9794]
[1718843420422,6.2812,135.4,135.31,21.9794]
[1718843420851,0.17,135.39,135.3,22.03]
[1718843421143,15.003,135.38,135.28,6.3181]
[1718843422126,15.003,135.38,135.29,0.17]
[1718843423040,15.003,135.38,135.29,0.34]
[1718843423335,20.0,135.39,135.3,22.2]
[1718843423521,20.0,135.39,135.24,6.0863]
[1718843423522,0.51,135.38,135.24,6.0863]
[1718843423725,0.17,135.35,135.24,28.1163]
[1718843423931,0.51,135.35,135.24,28.1163]
[1718843424520,0.17,135.36,135.24,28.1163]
[1718843424744,0.17,135.38,135.28,0.17]
[1718843424930,0.68,135.38,135.28,0.51]
[1718843425239,0.68,135.38,135.28,0.68]
[1718843426441,8.0669,135.38,135.27,22.03]
[1718843426635,8.0669,135.38,135.25,0.17]
[1718843426822,8.0669,135.38,135.25,20.68]
[1718843427944,0.68,135.38,135.25,20.51]
[1718843428154,16.5015,135.34,135.25,20.51]
[1718843428837,6.4899,135.33,135.25,20.51]
[1718843430250,6.4899,135.33,135.25,20.34]
[1718843430450,6.4899,135.33,135.25,20.0]
[1718843430628,6.4899,135.33,135.24,22.03]
[1718843430953,0.34,135.32,135.21,22.03]
[1718843431149,16.5969,135.29,135.17,44.06]
[1718843431335,16.5969,135.29,135.18,20.0]
[1718843431530,16.5969,135.29,135.18,42.03]
[1718843431730,0.17,135.28,135.18,20.0]
[1718843431950,6.5976,135.27,135.18,22.03]
[1718843432528,6.5976,135.27,135.21,22.03]
[1718843434825,13.9903,135.27,135.17,22.03]
[1718843435060,0.17,135.26,135.17,22.03]
[1718843435226,7.7332,135.26,135.17,22.03]
[1718843435426,0.34,135.25,135.17,22.03]
[1718843437054,20.0,135.26,135.18,0.34]
[1718843437348,6.5976,135.27,135.18,0.51]
[1718843438759,6.5976,135.27,135.18,0.34]
[1718843439624,6.5976,135.27,135.18,0.17]
[1718843440046,6.5976,135.27,135.18,0.34]
[1718843443249,6.5976,135.27,135.2,22.03]
[1718843443452,6.5976,135.27,135.21,0.51]
[1718843444745,6.5976,135.27,135.2,22.03]
[1718843445046,6.5976,135.27,135.21,0.51]
[1718843446354,16.5969,135.29,135.21,20.51]
[1718843446531,6.1447,135.31,135.24,0.17]
[1718843446737,15.7166,135.33,135.27,0.17]
[1718843447041,15.7166,135.33,135.27,0.51]
[1718843447642,15.7166,135.33,135.27,0.34]
[1718843447848,15.7166,135.33,135.27,0.17]
[1718843448263,15.7166,135.33,135.26,0.51]
[1718843448472,15.7166,135.33,135.24,0.17]
[1718843448776,15.7166,135.33,135.23,0.17]
[1718843448777,0.17,135.32,135.23,0.17]
[1718843448939,0.51,135.32,135.23,0.17]
[1718843449440,15.7166,135.33,135.23,0.34]
[1718843449640,15.7166,135.33,135.23,20.34]
[1718843450041,15.7166,135.33,135.24,0.17]
[1718843450464,15.7166,135.33,135.24,0.34]
[1718843451873,0.17,135.32,135.23,0.34]
[1718843452177,0.17,135.32,135.19,6.5689]
[1718843452178,6.4042,135.31,135.2,38.4733]
[1718843452473,6.4042,135.31,135.21,20.0]
[1718843452938,0.68,135.3,135.2,38.4733]
[1718843453141,0.68,135.3,135.2,16.4433]
[1718843453549,0.17,135.3,135.2,16.4433]
[1718843453750,7.561,135.3,135.2,16.4433]
[1718843453950,6.4042,135.31,135.2,16.4433]
[1718843454139,6.4042,135.31,135.21,20.0]
[1718843454542,6.4042,135.31,135.22,0.17]
[1718843455563,0.17,135.3,135.21,20.0]
[1718843455774,0.34,135.3,135.21,20.0]
[1718843456061,16.3997,135.29,135.19,0.17]
[1718843456242,16.3997,135.29,135.19,0.68]
[1718843457156,0.51,135.28,135.18,20.0]
[1718843457739,16.3997,135.29,135.18,20.0]
[1718843457938,16.3997,135.29,135.2,22.03]
[1718843458348,16.3997,135.29,135.21,0.68]
[1718843461351,16.3997,135.29,135.21,20.68]
[1718843461565,16.3997,135.29,135.24,0.17]
[1718843461773,16.3997,135.29,135.24,20.68]
[1718843462568,22.03,135.39,135.24,20.68]
[1718843462569,6.0693,135.35,135.27,0.17]
[1718843462766,6.0693,135.35,135.27,20.68]
[1718843463773,6.0693,135.35,135.27,0.68]
[1718843465870,15.3966,135.37,135.27,0.68]
[1718843466171,15.2282,135.4,135.28,43.9941]
[1718843466356,6.4327,135.42,135.31,0.17]
[1718843466566,6.4327,135.42,135.31,20.68]
[1718843466763,6.4327,135.42,135.31,42.91]
[1718843467165,22.0353,135.46,135.31,42.91]
[1718843468171,0.17,135.45,135.31,20.68]
[1718843468387,0.34,135.45,135.31,42.91]
[1718843468572,22.0353,135.46,135.31,42.91]
[1718843469467,22.0353,135.46,135.33,0.17]
[1718843469662,22.0353,135.46,135.33,20.68]
[1718843469867,22.0353,135.46,135.35,0.17]
[1718843470073,22.0353,135.46,135.35,20.51]
[1718843470262,22.0353,135.46,135.36,0.17]
[1718843470465,29.4175,135.46,135.36,0.34]
[1718843470965,22.0353,135.46,135.36,0.34]
[1718843471165,0.51,135.45,135.36,0.34]
[1718843471370,7.8928,135.45,135.35,20.0]
[1718843471577,0.34,135.44,135.34,15.6294]
[1718843471780,0.34,135.44,135.35,0.17]
[1718843471983,7.724,135.43,135.32,6.6088]
[1718843472289,22.0353,135.46,135.33,20.0]
[1718843472483,20.51,135.45,135.33,20.0]
[1718843472660,22.0353,135.46,135.34,15.4788]
[1718843472864,6.0573,135.46,135.35,20.0]
[1718843473281,6.0573,135.46,135.36,0.68]
[1718843473583,21.1374,135.49,135.37,6.0864]
[1718843473885,21.1374,135.49,135.38,20.51]
[1718843474092,6.093,135.52,135.4,0.17]
[1718843474267,6.093,135.52,135.4,20.51]
[1718843474465,6.093,135.52,135.41,0.17]
[1718843474669,6.093,135.52,135.42,0.17]
[1718843475059,0.34,135.51,135.42,0.17]
[1718843475663,6.093,135.52,135.42,0.17]
[1718843475902,6.093,135.52,135.42,0.51]
[1718843476082,6.093,135.52,135.43,0.17]
[1718843477080,6.093,135.52,135.43,0.51]
[1718843479180,15.0444,135.53,135.44,0.17]
[1718843479498,22.6796,135.56,135.44,6.7287]
[1718843479790,22.6796,135.56,135.45,20.17]
[1718843480176,30.0564,135.56,135.45,20.17]
[1718843480593,0.68,135.55,135.45,20.17]
[1718843481880,0.68,135.55,135.45,20.0]
[1718843482079,20.68,135.55,135.44,6.3887]
[1718843482285,20.68,135.55,135.45,0.34]
[1718843483567,0.17,135.53,135.44,6.3887]
[1718843483770,0.68,135.53,135.44,6.3887]
[1718843484190,8.0586,135.53,135.43,22.17]
[1718843484380,8.0586,135.53,135.42,0.17]
[1718843484695,0.68,135.53,135.42,0.17]
[1718843484993,20.68,135.53,135.42,0.17]
[1718843485891,20.68,135.53,135.41,20.0]
[1718843486191,0.68,135.53,135.4,6.6572]
[1718843486502,8.0587,135.53,135.4,6.6572]
[1718843486791,0.17,135.51,135.4,6.6572]
[1718843486980,7.5509,135.49,135.39,15.4788]
[1718843487179,0.34,135.48,135.39,15.4788]
[1718843487586,20.17,135.49,135.39,15.4788]
[1718843487971,0.34,135.48,135.39,15.4788]
[1718843488400,20.17,135.49,135.39,15.4788]
[1718843488877,0.17,135.48,135.39,15.4788]
[1718843489795,7.5512,135.48,135.39,15.4788]